bitfinex/quotes_BTCUSD_20251010
["timestamp","ask_amount","ask_price","bid_price","bid_amount"]
[1760066723739,0.00193923,121460.0,121450.0,2.03622578]
[1760066723956,0.00193923,121460.0,121450.0,1.64971805]
[1760066724176,0.00193923,121460.0,121450.0,2.03622578]
[1760066725230,0.00193923,121460.0,121450.0,1.64971805]
[1760066725854,0.00193923,121460.0,121450.0,2.03622578]
[1760066729884,0.00193923,121460.0,121450.0,1.80374578]
[1760066730094,0.00193923,121460.0,121450.0,1.41723805]
[1760066730307,0.00193923,121460.0,121450.0,1.64967805]
[1760066730600,0.00193923,121460.0,121450.0,1.41723805]
[1760066730884,0.00193923,121460.0,121450.0,1.64967805]
[1760066731556,0.00193923,121460.0,121450.0,1.80374578]
[1760066731770,0.00193923,121460.0,121450.0,2.03618578]
[1760066732221,0.00193923,121460.0,121450.0,1.64967805]
[1760066735212,0.00193923,121460.0,121450.0,0.87666259]
[1760066735359,0.00193923,121460.0,121450.0,1.64967805]
[1760066735559,0.00193923,121460.0,121450.0,1.41723805]
[1760066735792,0.00193923,121460.0,121450.0,1.64967805]
[1760066736630,0.00193923,121460.0,121450.0,1.41723805]
[1760066736834,0.00193923,121460.0,121450.0,1.64967805]
[1760066740221,0.00193923,121460.0,121450.0,1.80374578]
[1760066740428,0.00193923,121460.0,121450.0,1.64967805]
[1760066740634,0.00193923,121460.0,121450.0,2.03618578]
[1760066741047,0.00193923,121460.0,121450.0,1.80374578]
[1760066741537,0.00193923,121460.0,121450.0,1.41723805]
[1760066741746,0.00193923,121460.0,121450.0,1.64967805]
[1760066741948,0.23437045,121490.0,121470.0,0.1646497]
[1760066742224,0.16463749,121480.0,121470.0,0.1885397]
[1760066742414,0.16463749,121480.0,121470.0,0.2687997]
[1760066742630,0.14294087,121490.0,121470.0,0.2687997]
[1760066742836,0.469252,121490.0,121470.0,0.29352334]
[1760066743043,0.151172,121490.0,121480.0,0.02389]
[1760066743246,0.469252,121490.0,121480.0,0.87716546]
[1760066743652,0.469252,121490.0,121480.0,0.82896546]
[1760066744069,0.236812,121490.0,121480.0,0.82896546]
[1760066744686,0.469252,121490.0,121480.0,0.82896546]
[1760066745240,0.151172,121490.0,121480.0,0.82896546]
[1760066745677,0.151172,121490.0,121480.0,0.87716546]
[1760066746849,0.151172,121490.0,121480.0,0.82896546]
[1760066747717,0.383612,121490.0,121480.0,0.82896546]
[1760066748136,0.38515415,121490.0,121480.0,0.82896546]
[1760066748623,0.38515415,121490.0,121480.0,0.05595]
[1760066748836,0.38515415,121490.0,121480.0,0.82896546]
[1760066751781,0.38515415,121490.0,121470.0,0.26295334]
[1760066751988,0.383612,121490.0,121480.0,0.77301546]
[1760066752434,0.151172,121490.0,121480.0,0.38650773]
[1760066752645,0.383572,121490.0,121480.0,0.38650773]
[1760066753925,0.16463615,121480.0,121470.0,0.04861364]
[1760066754136,0.16463615,121480.0,121470.0,0.24589334]
[1760066755200,0.16463615,121480.0,121470.0,0.63240107]
[1760066755417,0.39703615,121480.0,121470.0,0.63240107]
[1760066755629,0.39703615,121480.0,121470.0,0.38650773]
[1760066755630,0.16463615,121480.0,121470.0,0.38650773]
[1760066755848,0.39703615,121480.0,121470.0,0.38650773]
[1760066756049,0.151172,121490.0,121470.0,0.58378743]
[1760066756257,0.16463615,121480.0,121470.0,0.05787]
[1760066756464,0.39703615,121480.0,121470.0,0.05787]
[1760066757325,0.00102819,121480.0,121470.0,0.2722097]
[1760066757509,0.23342819,121480.0,121470.0,0.65871743]
[1760066757753,0.39806434,121480.0,121470.0,0.65871743]
[1760066757966,0.39806434,121480.0,121470.0,0.68344186]
[1760066758621,0.16566434,121480.0,121470.0,0.68344186]
[1760066758848,0.39806434,121480.0,121470.0,0.68344186]
[1760066759056,0.16566434,121480.0,121470.0,0.68344186]
[1760066759274,0.39806434,121480.0,121470.0,0.68344186]
[1760066759928,0.16566434,121480.0,121470.0,0.68344186]
[1760066760351,0.39806434,121480.0,121470.0,0.68344186]
[1760066760992,0.16566434,121480.0,121470.0,0.68344186]
[1760066761250,0.39806434,121480.0,121470.0,0.68344186]
[1760066761758,0.16566434,121480.0,121470.0,0.68344186]
[1760066761953,0.39806434,121480.0,121470.0,0.68344186]
[1760066762170,0.23342819,121480.0,121470.0,1.06994959]
[1760066762359,0.23342819,121480.0,121470.0,0.29693413]
[1760066762569,0.00102819,121480.0,121470.0,1.06994959]
[1760066762780,0.23342819,121480.0,121470.0,1.06994959]
[1760066763384,0.00102819,121480.0,121470.0,1.06994959]
[1760066763595,0.23342819,121480.0,121470.0,1.06994959]
[1760066764678,0.00102819,121480.0,121470.0,1.06994959]
[1760066764876,0.23342819,121480.0,121470.0,1.06994959]
[1760066765338,0.00102819,121480.0,121470.0,1.06994959]
[1760066765775,0.00102819,121480.0,121470.0,1.45645732]
[1760066765977,0.00102819,121480.0,121470.0,1.68885732]
[1760066766201,0.00102819,121480.0,121470.0,0.29693413]
[1760066766367,0.00102819,121480.0,121470.0,1.06994959]
[1760066766566,0.00102819,121480.0,121470.0,1.30234959]
[1760066766983,0.00061868,121480.0,121470.0,1.30234959]
[1760066767177,0.00061868,121480.0,121470.0,1.06994959]
[1760066767386,0.00061868,121480.0,121470.0,1.30234959]
[1760066767592,0.00061868,121480.0,121470.0,1.68885732]
[1760066767794,0.00061868,121480.0,121470.0,1.79645732]
[1760066768025,0.00061868,121480.0,121470.0,2.08885732]
[1760066768433,0.00061868,121480.0,121470.0,1.85645732]
[1760066768634,0.00061868,121480.0,121470.0,2.08885732]
[1760066769001,0.00061868,121480.0,121470.0,1.85645732]
[1760066769213,0.00061868,121480.0,121470.0,2.08885732]
[1760066775605,0.00061868,121480.0,121470.0,1.72693489]
[1760066775817,0.00061868,121480.0,121470.0,1.95929489]
[1760066778572,0.00061868,121480.0,121470.0,1.72693489]
[1760066778758,0.00061868,121480.0,121470.0,1.95929489]
[1760066779382,0.00061868,121480.0,121470.0,0.69693413]
[1760066779596,0.00061868,121480.0,121470.0,2.04489489]
[1760066781047,0.00061868,121480.0,121470.0,1.81253489]
[1760066781265,0.00061868,121480.0,121470.0,2.04489489]
[1760066784523,0.00061868,121480.0,121470.0,1.72693489]
[1760066784742,0.00061868,121480.0,121470.0,2.04489489]
[1760066789135,0.00061868,121480.0,121470.0,1.72693489]
[1760066789274,0.00061868,121480.0,121470.0,2.04489489]
[1760066790148,0.00061868,121480.0,121470.0,1.72693489]
[1760066790358,0.00061868,121480.0,121470.0,2.04485489]
[1760066790580,0.00061868,121480.0,121470.0,1.81253489]
[1760066791038,0.00061868,121480.0,121470.0,2.04485489]
[1760066791243,0.00061868,121480.0,121470.0,1.72693489]
[1760066791505,0.00061868,121480.0,121470.0,1.95925489]
[1760066791726,0.00061868,121480.0,121470.0,1.72693489]
[1760066792619,0.00061868,121480.0,121470.0,1.21193451]
[1760066792841,0.00061868,121480.0,121470.0,1.44425451]
[1760066793312,0.00061868,121480.0,121470.0,1.95925489]
[1760066793530,0.00061868,121480.0,121470.0,1.44425451]
[1760066793962,0.00061868,121480.0,121470.0,1.95925489]
[1760066795743,0.00061868,121480.0,121470.0,1.72693489]
[1760066795996,0.00061868,121480.0,121470.0,1.44425451]
[1760066796421,0.00061868,121480.0,121470.0,1.21193451]
[1760066796647,0.00061868,121480.0,121470.0,1.44425451]
[1760066797081,0.00061868,121480.0,121470.0,1.21193451]
[1760066797291,0.00061868,121480.0,121470.0,1.44425451]
[1760066797715,0.00061868,121480.0,121470.0,1.21193451]
[1760066797931,0.00061868,121480.0,121470.0,1.95925489]
[1760066800047,0.00061868,121480.0,121470.0,1.72693489]
[1760066800258,0.00061868,121480.0,121470.0,1.95925489]
[1760066800872,0.00061868,121480.0,121470.0,1.72693489]
[1760066801078,0.00061868,121480.0,121470.0,1.95925489]
[1760066802238,0.00061868,121480.0,121470.0,1.72693489]
[1760066802449,0.00061868,121480.0,121470.0,1.95925489]
[1760066803153,0.00061868,121480.0,121470.0,1.72693489]
[1760066803442,0.00061868,121480.0,121470.0,1.95925489]
[1760066803837,0.00061868,121480.0,121470.0,1.21193451]
[1760066804668,0.00061868,121480.0,121470.0,0.92925413]
[1760066804871,0.00061868,121480.0,121470.0,1.44425451]
[1760066805773,0.16525483,121480.0,121470.0,1.44425451]
[1760066805985,0.00061868,121480.0,121470.0,1.44425451]
[1760066807081,0.00061868,121480.0,121470.0,1.21193451]
[1760066807308,0.16525483,121480.0,121470.0,1.44425451]
[1760066807527,0.16525483,121480.0,121470.0,0.14259443]
[1760066807737,0.16525483,121480.0,121470.0,0.63287038]
[1760066808160,0.19540673,121480.0,121470.0,0.06]
[1760066808394,0.45245297,121480.0,121470.0,0.06]
[1760066810616,0.53805297,121480.0,121470.0,0.06]
[1760066811097,1.39305335,121480.0,121470.0,0.06]
[1760066811314,0.16467682,121450.0,121440.0,0.54161501]
[1760066811539,0.39727682,121450.0,121440.0,0.57468501]
[1760066811756,0.28042872,121450.0,121440.0,0.00137463]
[1760066812184,0.51302872,121450.0,121440.0,0.00137463]
[1760066812614,0.51302872,121450.0,121440.0,0.00142504]
[1760066812827,0.45216175,121450.0,121440.0,0.00142504]
[1760066813037,0.53776175,121450.0,121440.0,0.00142504]
[1760066813728,0.18940985,121450.0,121440.0,0.00142504]
[1760066813946,0.50764985,121450.0,121440.0,0.00142504]
[1760066814769,1.16020213,121450.0,121440.0,0.00142504]
[1760066814954,0.64520175,121450.0,121440.0,0.00142504]
[1760066815181,0.87832175,121450.0,121440.0,0.00142504]
[1760066815890,0.62176382,121450.0,121440.0,0.00142504]
[1760066816122,0.94048382,121450.0,121440.0,0.00142504]
[1760066816543,0.62176382,121450.0,121440.0,0.00142504]
[1760066816773,0.94052382,121450.0,121440.0,0.00142504]
[1760066817171,0.62176382,121450.0,121440.0,0.00142504]
[1760066817388,0.94048382,121450.0,121440.0,0.00142504]
[1760066817602,0.85484382,121450.0,121440.0,0.00142504]
[1760066817852,0.59703079,121450.0,121440.0,0.00142504]
[1760066818065,0.91575079,121450.0,121440.0,0.00142504]
[1760066818576,0.68267079,121450.0,121440.0,0.00142504]
[1760066818793,0.91575079,121450.0,121440.0,0.00142504]
[1760066819213,1.16278079,121450.0,121440.0,0.00142504]
[1760066819837,0.84406079,121450.0,121440.0,0.00142504]
[1760066820054,1.16278079,121450.0,121440.0,0.00142504]
[1760066820279,0.84406079,121450.0,121440.0,0.00142504]
[1760066820718,1.17044062,121450.0,121440.0,0.00142504]
[1760066820934,0.85172062,121450.0,121440.0,0.00142504]
[1760066821381,0.93736062,121450.0,121440.0,0.00142504]
[1760066821814,1.17044062,121450.0,121440.0,0.00142504]
[1760066822041,1.17043896,121450.0,121440.0,0.00142504]
[1760066822248,0.65743368,121450.0,121440.0,0.00142504]
[1760066822519,1.0551905,121450.0,121440.0,0.00142504]
[1760066822766,1.1408305,121450.0,121440.0,0.00142504]
[1760066823617,0.9077505,121450.0,121440.0,0.00142504]
[1760066823834,1.1408305,121450.0,121440.0,0.00142504]
[1760066824932,1.65583088,121450.0,121440.0,5.041e-05]
[1760066825160,0.19484228,121440.0,121430.0,1e-08]
[1760066825390,0.96453083,121440.0,121430.0,1e-08]
[1760066826581,0.95687266,121440.0,121430.0,1e-08]
[1760066826790,0.96452647,121440.0,121430.0,1e-08]
[1760066827231,0.76832609,121440.0,121430.0,1e-08]
[1760066828738,0.77753969,121440.0,121430.0,1e-08]
[1760066829218,0.69189969,121440.0,121430.0,1e-08]
[1760066829684,0.77757969,121440.0,121430.0,1e-08]
[1760066829886,0.79873969,121440.0,121430.0,1e-08]
[1760066830089,1.11757969,121440.0,121430.0,1e-08]
[1760066830875,1.11757969,121440.0,121430.0,0.00092397]
[1760066831299,0.45052609,121440.0,121430.0,0.51592435]
[1760066831525,0.25568381,121440.0,121430.0,0.54631435]
[1760066831745,0.50605419,121440.0,121430.0,0.61530435]
[1760066831967,0.73925419,121440.0,121430.0,0.61530435]
[1760066832399,0.50605419,121440.0,121430.0,0.61530435]
[1760066832619,0.73933419,121440.0,121430.0,0.56990435]
[1760066835492,0.73933419,121440.0,121430.0,0.54631435]
[1760066837639,0.50605419,121440.0,121430.0,0.44168558]
[1760066837858,0.73925419,121440.0,121430.0,0.44168558]
[1760066840408,0.73921419,121440.0,121430.0,0.44168558]
[1760066841779,0.73921419,121440.0,121430.0,0.41129558]
[1760066842218,0.53620609,121440.0,121430.0,0.00092397]
[1760066842434,0.78476412,121440.0,121430.0,0.00092397]
[1760066843094,1.17158573,121440.0,121430.0,0.00092397]
[1760066843299,0.93838573,121440.0,121430.0,0.00092397]
[1760066843509,0.78476412,121440.0,121430.0,0.00092397]
[1760066843934,1.17154573,121440.0,121430.0,0.00092397]
[1760066844139,0.97656583,121440.0,121430.0,0.00092397]
[1760066845007,0.58978422,121440.0,121430.0,0.00092397]
[1760066846319,0.58978422,121440.0,121430.0,0.38770558]
[1760066846711,0.58978662,121440.0,121430.0,0.38770558]
[1760066846833,0.27094662,121440.0,121430.0,0.38770558]
[1760066847042,0.57438619,121440.0,121430.0,0.38770558]
[1760066847241,0.56934619,121440.0,121430.0,0.38770558]
[1760066850966,0.48362619,121440.0,121430.0,0.38770558]
[1760066851139,0.25054619,121440.0,121430.0,0.38770558]
[1760066851357,0.05570391,121440.0,121430.0,0.99317113]
[1760066851573,0.28878391,121440.0,121430.0,1.03857113]
[1760066852401,0.28778391,121440.0,121430.0,1.03857113]
[1760066852829,0.28878391,121440.0,121430.0,1.03857113]
[1760066853055,0.28782391,121440.0,121430.0,1.03857113]
[1760066853560,0.05470391,121440.0,121430.0,1.03857113]
[1760066853787,0.28778391,121440.0,121430.0,1.03857113]
[1760066854101,0.2801301,121440.0,121430.0,1.03857113]
[1760066855993,0.0470501,121440.0,121430.0,1.42535274]
[1760066856205,0.2235701,121440.0,121430.0,1.76535274]
[1760066856572,0.0470501,121440.0,121430.0,1.76535274]
[1760066857255,0.0470501,121440.0,121430.0,1.99847274]
[1760066858308,0.0470501,121440.0,121430.0,1.99843274]
[1760066858931,0.0470501,121440.0,121430.0,1.76535274]
[1760066859342,0.0470501,121440.0,121430.0,1.99843274]
[1760066863495,0.0470501,121440.0,121430.0,1.99835274]
[1760066863721,0.0470501,121440.0,121430.0,1.76535274]
[1760066863922,0.0470501,121440.0,121430.0,1.99835274]
[1760066865677,0.0470501,121440.0,121430.0,2.92569757]
[1760066865895,0.0470501,121440.0,121430.0,3.15869757]
[1760066866344,0.0470501,121440.0,121430.0,2.92569757]
[1760066866553,0.0470501,121440.0,121430.0,1.76535274]
[1760066866768,0.0470501,121440.0,121430.0,3.15865757]
[1760066867230,0.0470501,121440.0,121430.0,2.92569757]
[1760066867702,0.0470501,121440.0,121430.0,3.15865757]
[1760066871510,0.0470501,121440.0,121430.0,3.15861757]
[1760066871970,0.00096498,121460.0,121450.0,1.66502165]
[1760066872247,0.00096498,121460.0,121450.0,3.08142648]
[1760066872690,0.00096498,121460.0,121450.0,3.15889648]
[1760066873322,0.00096498,121460.0,121450.0,1.99855165]
[1760066874396,0.00101538,121460.0,121450.0,1.99855165]
[1760066875838,0.00101538,121460.0,121450.0,3.15889648]
[1760066876701,0.00101538,121460.0,121450.0,1.99855165]
[1760066878844,0.00101538,121460.0,121450.0,1.99851165]
[1760066879305,0.00101538,121460.0,121450.0,1.76563165]
[1760066879517,0.00101538,121460.0,121450.0,1.99847165]
[1760066880243,0.00101538,121460.0,121450.0,1.76563165]
[1760066880501,0.00101538,121460.0,121450.0,1.99847165]
[1760066880735,0.00101538,121460.0,121450.0,1.76563165]
[1760066880961,0.00101538,121460.0,121450.0,0.39343]
[1760066881170,0.00101538,121460.0,121450.0,1.37885004]
[1760066881832,0.16567864,121460.0,121450.0,1.37885004]
[1760066882044,0.16567864,121460.0,121450.0,1.21417322]
[1760066882696,0.16567864,121460.0,121450.0,0.44021161]
[1760066882934,0.16567864,121460.0,121450.0,0.82699322]
[1760066884082,0.16567864,121460.0,121450.0,0.77356322]
[1760066884301,0.39851864,121460.0,121450.0,0.38678161]
[1760066884971,0.16567864,121460.0,121450.0,0.38678161]
[1760066885186,0.39851864,121460.0,121450.0,0.38678161]
[1760066886303,0.39851864,121460.0,121450.0,0.87490322]
[1760066886304,0.16567864,121460.0,121450.0,0.87490322]
[1760066886764,0.39851864,121460.0,121450.0,1.03958004]
[1760066891426,0.23381538,121460.0,121450.0,1.03958004]
[1760066892450,0.00101538,121460.0,121450.0,1.03958004]
[1760066893130,0.23381538,121460.0,121450.0,1.03958004]
[1760066893564,0.23377538,121460.0,121450.0,1.03958004]
[1760066894200,0.00101538,121460.0,121450.0,1.03958004]
[1760066894642,0.00101538,121460.0,121450.0,1.65912165]
[1760066894858,0.00101538,121460.0,121450.0,1.42636165]
[1760066895073,0.00101538,121460.0,121450.0,1.65912165]
[1760066895384,0.00101538,121460.0,121450.0,1.27234004]
[1760066897508,0.00101538,121460.0,121450.0,1.01413024]
[1760066899136,0.00101538,121460.0,121450.0,0.78137024]
[1760066899350,0.00101538,121460.0,121450.0,1.01409024]
[1760066902071,0.00101538,121460.0,121450.0,1.35409024]
[1760066903705,0.00101538,121460.0,121450.0,1.35417024]
[1760066903917,0.00101538,121460.0,121450.0,1.63672366]
[1760066904150,0.00101538,121460.0,121450.0,1.66144556]
[1760066904369,0.00101538,121460.0,121450.0,1.89424556]
[1760066904824,0.16459928,121510.0,121490.0,0.1646157]
[1760066905046,0.16459928,121510.0,121500.0,0.54641342]
[1760066905047,0.48308592,121510.0,121500.0,0.54641342]
[1760066905267,0.48308592,121510.0,121500.0,0.61669342]
[1760066907324,0.48408592,121510.0,121500.0,0.61669342]
[1760066907800,0.25028592,121510.0,121500.0,0.05432]
[1760066908004,0.48304592,121510.0,121500.0,0.05432]
[1760066908225,0.48304592,121510.0,121500.0,0.56967342]
[1760066909290,0.48304592,121510.0,121500.0,0.51535342]
[1760066909739,0.48304592,121510.0,121500.0,0.03106]
[1760066909959,0.48304592,121510.0,121500.0,0.51535342]
[1760066910200,0.48304592,121510.0,121490.0,0.2349]
[1760066910201,0.16460905,121500.0,121490.0,0.51535342]
[1760066911158,0.39732905,121500.0,121490.0,0.54641342]
[1760066911998,0.23272,121500.0,121490.0,0.78131602]
[1760066912240,0.16460905,121500.0,121480.0,0.23491474]
[1760066912507,0.16460905,121500.0,121490.0,0.54641342]
[1760066912508,0.39732905,121500.0,121490.0,0.54641342]
[1760066912779,0.39732905,121500.0,121490.0,0.56967342]
[1760066913290,0.39732905,121500.0,121490.0,0.61762342]
[1760066914174,0.39732905,121500.0,121490.0,0.78224602]
[1760066914676,0.25851569,121510.0,121490.0,0.78224602]
[1760066914894,0.23268,121500.0,121490.0,0.2668926]
[1760066915516,0.25851569,121510.0,121490.0,0.2668926]
[1760066915517,0.17287569,121510.0,121490.0,0.2668926]
[1760066915731,0.16460905,121500.0,121490.0,0.2668926]
[1760066915939,0.39728905,121500.0,121490.0,0.2668926]
[1760066916147,0.39728905,121500.0,121490.0,0.78224602]
[1760066916567,0.39934508,121500.0,121490.0,0.78224602]
[1760066916786,0.23473603,121500.0,121490.0,0.78224602]
[1760066917637,0.39934508,121500.0,121490.0,0.78224602]
[1760066918842,0.39934508,121500.0,121490.0,0.56967342]
[1760066918843,0.39930508,121500.0,121490.0,0.56967342]
[1760066919325,0.39930508,121500.0,121490.0,0.73429602]
[1760066920073,0.16666508,121500.0,121490.0,0.73429602]
[1760066920284,0.39930508,121500.0,121490.0,0.51535342]
[1760066920836,0.16666508,121500.0,121490.0,0.51535342]
[1760066921040,0.39926508,121500.0,121490.0,0.51535342]
[1760066922543,0.16666508,121500.0,121490.0,0.54657342]
[1760066923049,0.39926508,121500.0,121490.0,0.54657342]
[1760066923533,0.39926508,121500.0,121490.0,0.51535342]
[1760066923691,0.16666508,121500.0,121490.0,0.51535342]
[1760066924071,0.39926508,121500.0,121490.0,0.51535342]
[1760066924485,0.1646226,121490.0,121480.0,0.36447]
[1760066924723,0.1646226,121490.0,121480.0,0.91104342]
[1760066924928,0.3972226,121490.0,121480.0,0.91104342]
[1760066925361,0.3972226,121490.0,121480.0,1.07567957]
[1760066925571,0.1646226,121490.0,121480.0,1.07567957]
[1760066925784,0.3972226,121490.0,121480.0,1.12362957]
[1760066926913,0.3972226,121490.0,121480.0,0.91104342]
[1760066927146,0.16463615,121480.0,121470.0,0.80445763]
[1760066927372,0.1646226,121490.0,121470.0,1.11739105]
[1760066927601,0.3971826,121490.0,121470.0,0.83459763]
[1760066927821,0.3971826,121490.0,121480.0,0.53779342]
[1760066928041,0.3971826,121490.0,121480.0,0.61192342]
[1760066928473,0.3971826,121490.0,121480.0,0.51535342]
[1760066928905,0.2971826,121490.0,121480.0,0.51535342]
[1760066929120,0.2971826,121490.0,121480.0,0.56797342]
[1760066929340,0.0646226,121490.0,121480.0,0.61192342]
[1760066929549,0.0646226,121490.0,121480.0,0.77655957]
[1760066929777,0.2972226,121490.0,121480.0,0.77655957]
[1760066929999,0.29872475,121490.0,121480.0,0.77655957]
[1760066930831,0.29872475,121490.0,121480.0,0.61192342]
[1760066931454,0.06616475,121490.0,121480.0,0.61192342]
[1760066931664,0.29872475,121490.0,121480.0,0.77655957]
[1760066932289,0.29872475,121490.0,121480.0,0.61192342]
[1760066932513,0.06616475,121490.0,121480.0,0.61192342]
[1760066932954,0.29872475,121490.0,121480.0,0.61192342]
[1760066936399,0.29872475,121490.0,121480.0,0.56797342]
[1760066936603,0.29872475,121490.0,121480.0,0.53779342]
[1760066937513,0.29872475,121490.0,121480.0,0.56797342]
[1760066938732,0.16463615,121480.0,121470.0,0.36326]
[1760066938972,0.16463615,121480.0,121470.0,0.95192342]
[1760066939166,0.39715615,121480.0,121470.0,1.11657312]
[1760066939349,0.16463615,121480.0,121470.0,1.11657312]
[1760066939551,0.23252,121480.0,121470.0,1.11657312]
[1760066939732,0.39715615,121480.0,121470.0,1.11657312]
[1760066940113,0.16463615,121480.0,121470.0,1.11657312]
[1760066940311,0.39715615,121480.0,121470.0,1.12467021]
[1760066940545,0.16463615,121480.0,121470.0,1.12467021]
[1760066940895,0.39715615,121480.0,121470.0,1.12467021]
[1760066942412,0.12735354,121490.0,121470.0,1.12467021]
[1760066942649,0.12735354,121490.0,121480.0,0.51535342]
[1760066942849,0.35987354,121490.0,121480.0,0.51535342]
[1760066943182,0.35987354,121490.0,121480.0,0.56995342]
[1760066943386,0.1646226,121490.0,121480.0,1.29859299]
[1760066943589,0.3971426,121490.0,121480.0,1.29859299]
[1760066944344,0.1646226,121490.0,121480.0,1.29859299]
[1760066944558,0.3971426,121490.0,121480.0,1.29859299]
[1760066944767,0.39868475,121490.0,121480.0,1.29859299]
[1760066945194,0.39868475,121490.0,121480.0,0.78323957]
[1760066946815,0.00154215,121490.0,121480.0,1.29859299]
[1760066947023,0.00154215,121490.0,121480.0,1.63859299]
[1760066947251,0.00154215,121490.0,121480.0,1.87111299]
[1760066947665,0.00154215,121490.0,121480.0,1.63859299]
[1760066947854,0.00154215,121490.0,121480.0,1.87111299]
[1760066950374,0.00154215,121490.0,121480.0,1.63859299]
[1760066950591,0.00154215,121490.0,121480.0,1.87111299]
[1760066952556,0.00154215,121490.0,121480.0,0.84040615]
[1760066952755,0.00154215,121490.0,121480.0,1.87111299]
[1760066953456,0.00154215,121490.0,121480.0,0.60788615]
[1760066953668,0.00154215,121490.0,121480.0,1.87111299]
[1760066953872,0.00154215,121490.0,121480.0,1.63859299]
[1760066954011,0.00154215,121490.0,121480.0,1.87111299]
[1760066954418,0.00154215,121490.0,121480.0,1.63859299]
[1760066954643,0.00154215,121490.0,121480.0,1.87111299]
[1760066956872,0.00154215,121490.0,121480.0,1.63859299]
[1760066957048,0.00154215,121490.0,121480.0,1.87111299]
[1760066958717,0.00154215,121490.0,121480.0,1.63859299]
[1760066958947,0.00154215,121490.0,121480.0,1.87111299]
[1760066959585,0.00154215,121490.0,121480.0,1.99945543]
[1760066965156,0.00154215,121490.0,121480.0,1.61310567]
[1760066965365,0.00154215,121490.0,121480.0,1.65945543]
[1760066965572,0.39277929,121510.0,121500.0,0.77269952]
[1760066966229,0.16460905,121500.0,121490.0,0.2363225]
[1760066966444,0.16460905,121500.0,121490.0,0.2678725]
[1760066967321,0.16460905,121500.0,121490.0,1.04057202]
[1760066967531,0.16460905,121500.0,121490.0,0.87594952]
[1760066967998,0.16460905,121500.0,121490.0,1.04057212]
[1760066969062,5.042e-05,121510.0,121500.0,0.16460905]
[1760066969293,5.042e-05,121510.0,121500.0,1.42690833]
[1760066969530,5.042e-05,121510.0,121500.0,0.84033905]
[1760066969793,5.042e-05,121510.0,121500.0,2.92595761]
[1760066970026,0.01408935,121530.0,121520.0,2.82268052]
[1760066970233,0.01459352,121530.0,121520.0,1.68668124]
[1760066970442,0.01459352,121530.0,121520.0,1.95135124]
[1760066970653,0.01459352,121530.0,121520.0,1.76688124]
[1760066970873,0.01459352,121530.0,121520.0,2.00000124]
[1760066971096,0.01459352,121530.0,121520.0,3.15905052]
[1760066971317,0.01459352,121530.0,121520.0,2.00000124]
[1760066971755,0.01459352,121530.0,121520.0,2.02471036]
[1760066972629,0.01459352,121530.0,121520.0,3.18375964]
[1760066972890,0.01459352,121530.0,121520.0,2.02471036]
[1760066973092,0.01459352,121530.0,121520.0,3.18371964]
[1760066973314,0.01459352,121530.0,121520.0,2.02467036]
[1760066973750,0.01459352,121530.0,121520.0,1.79159036]
[1760066973955,0.01459352,121530.0,121520.0,2.02467036]
[1760066974160,0.01459352,121530.0,121520.0,1.79159036]
[1760066974396,0.01459352,121530.0,121520.0,2.02467036]
[1760066976145,0.01459352,121530.0,121520.0,1.68467036]
[1760066976486,0.01664879,121530.0,121520.0,1.68463036]
[1760066976700,0.01664879,121530.0,121520.0,0.52554108]
[1760066976920,0.01664879,121530.0,121520.0,1.45159036]
[1760066977123,0.01664879,121530.0,121520.0,0.29254108]
[1760066977310,0.01664879,121530.0,121520.0,1.68459036]
[1760066977581,0.01664879,121530.0,121520.0,1.45159036]
[1760066977782,0.01664879,121530.0,121520.0,1.42688124]
[1760066978177,0.01664879,121530.0,121520.0,1.65988124]
[1760066978696,0.01664879,121530.0,121520.0,1.42688124]
[1760066978839,0.01664879,121530.0,121520.0,1.65988124]
[1760066979491,0.01664879,121530.0,121520.0,1.04053148]
[1760066979655,0.01664879,121530.0,121520.0,1.27349148]
[1760066980064,0.01664879,121530.0,121520.0,1.65984124]
[1760066982929,0.01664879,121530.0,121520.0,1.27349148]
[1760066983598,0.01664879,121530.0,121520.0,1.04053148]
[1760066983812,0.01664879,121530.0,121520.0,1.42688124]
[1760066984024,0.01664879,121530.0,121520.0,1.65980124]
[1760066984656,0.01664879,121530.0,121520.0,1.42688124]
[1760066984856,0.01664879,121530.0,121520.0,1.65980124]
[1760066985695,0.01664879,121530.0,121520.0,1.27345148]
[1760066985938,0.01664879,121530.0,121520.0,1.04053148]
[1760066986141,0.01664879,121530.0,121520.0,1.27345148]
[1760066986367,0.01664879,121530.0,121520.0,1.04053148]
[1760066986582,0.01664879,121530.0,121520.0,1.27341148]
[1760066987715,0.17277343,121550.0,121530.0,0.16456841]
[1760066987936,0.17289788,121550.0,121540.0,0.43912976]
[1760066990205,0.16455487,121540.0,121530.0,0.45710976]
[1760066990438,0.16455487,121540.0,121530.0,0.43912976]
[1760066990699,0.16456841,121530.0,121510.0,0.2352209]
[1760066990933,0.16456841,121530.0,121520.0,0.41594976]
[1760066991416,0.16456841,121530.0,121520.0,0.65129172]
[1760066991638,0.16456841,121530.0,121520.0,0.43912976]
[1760066991856,0.16456841,121530.0,121520.0,0.41594976]
[1760066992323,0.16456841,121530.0,121520.0,0.43912976]
[1760066993696,0.16456841,121530.0,121520.0,0.41594976]
[1760066994334,0.16456841,121530.0,121520.0,0.43912976]
[1760066994634,0.39740841,121530.0,121520.0,0.0296]
[1760066994856,0.39740841,121530.0,121520.0,0.38634976]
[1760066995071,0.16456841,121530.0,121520.0,0.41594976]
[1760066995290,0.39740841,121530.0,121520.0,0.41594976]
[1760066996674,0.16456841,121530.0,121520.0,0.58053172]
[1760066996863,0.39740841,121530.0,121520.0,0.65129172]
[1760066997640,0.16456841,121530.0,121520.0,0.65129172]
[1760066998262,0.2328,121530.0,121520.0,0.65129172]
[1760066998497,0.16456841,121530.0,121520.0,0.65129172]
[1760066998721,0.39736841,121530.0,121520.0,0.65129172]
[1760067000315,0.16456841,121530.0,121520.0,1.03764148]
[1760067000541,0.32118188,121540.0,121520.0,1.03764148]
[1760067000760,0.32888529,121540.0,121530.0,0.38634976]
[1760067001185,0.24328529,121540.0,121530.0,0.41594976]
[1760067001401,0.24328529,121540.0,121530.0,0.43912976]
[1760067001605,0.47612529,121540.0,121530.0,0.38634976]
[1760067002874,0.24328529,121540.0,121530.0,0.38634976]
[1760067003311,0.24328491,121540.0,121530.0,0.41588976]
[1760067003524,0.23558188,121540.0,121530.0,0.41588976]
[1760067003744,0.1732963,121540.0,121530.0,0.43931976]
[1760067003975,0.00051369,121540.0,121530.0,0.65206817]
[1760067004183,0.00051369,121540.0,121530.0,0.26571841]
[1760067004403,0.00051369,121540.0,121530.0,0.65206817]
[1760067005725,0.00051369,121540.0,121530.0,0.26571841]
[1760067005970,0.00051369,121540.0,121530.0,0.65206817]
[1760067006450,0.00051369,121540.0,121530.0,1.03841793]
[1760067009527,0.00051369,121540.0,121530.0,1.27129793]
[1760067010031,0.00051369,121540.0,121530.0,1.03841793]
[1760067010287,0.00051369,121540.0,121530.0,0.26571841]
[1760067010505,0.00051369,121540.0,121530.0,1.03841793]
[1760067010721,0.00051369,121540.0,121530.0,1.27125793]
[1760067013070,0.00051369,121540.0,121530.0,1.03841793]
[1760067013289,0.00051369,121540.0,121530.0,1.27125793]